Cogmind - Beta 9.6 @@@ ROGUE MODE // 2020.07.21 @ 16:48:11 // Winter2019/RPGLIKE Player: Hermelin Result: Destroyed by 8R-AWN with 8R-AWN's Boregun Performance ------------- Evolutions (0) 0 Regions Visited (3) 600 Robots Destroyed (38) 190 Value Destroyed (893) 893 Prototype IDs (22) 440 Alien Tech Used (0) 0 Bonus (290) 290 TOTAL SCORE: 2413 Bonus ------- High Alert Combat Kills 24 Follower Combat Kills 68 Aligned with FarCom 300 Friendly Fire -102 Cogmind --------- Core Integrity 0/700 Matter 133/300 Energy 160/160 System Corruption 1% Temperature Cool (0) Movement Hovering (56) Location -10/Exiles Parts ------- > --- POWER (1) -------- Light Nuclear Core > --- PROPULSION (3) --- Hover Unit Hover Unit > --- UTILITY (4) ------ (None) > --- WEAPON (2) ------- Heavy Assault Rifle Heavy Assault Rifle > --- INVENTORY (4) ---- Guided Plasma Cannon YOLO Cannon Grenade Launcher Peak State ------------ > --- POWER ------------ Light Nuclear Core > --- PROPULSION ------- Hover Unit Hover Unit Hover Unit > --- UTILITY ---------- Weapon Shielding Light Armor Plating Light Armor Plating Light Armor Plating > --- WEAPON ----------- Heavy Assault Rifle Heavy Assault Rifle > --- INVENTORY -------- YOLO Cannon Grenade Launcher [Rating: 16] Favorites ----------- Power Light Ion Engine Engine Light Ion Engine Power Core Light Nuclear Core Propulsion Hover Unit Treads Light Treads Wheel Wheel Hover Unit Hover Unit Flight Unit Flight Unit Utility Light Armor Plating Device Improved Heat Sink Hackware Hacking Suite Protection Light Armor Plating Weapon Heavy Assault Rifle Energy Gun Medium Laser Energy Cannon Beam Cannon Ballistic Gun Heavy Assault Rifle Build | -11 -10 -10 -10 ------- Run | Scr Mat Min Exi Slots Evolved 6 | 3 3 . . Power . | . . . . Propulsion 2 | 1 1 . . Utility 3 | 1 2 . . Weapon 1 | 1 . . . Parts Attached 28 | 5 18 5 . Power 3 | 1 . 2 . Engine 1 | 1 . . . Core 2 | . . 2 . Reactor . | . . . . Propulsion 9 | 2 7 . . Treads 1 | . 1 . . Leg . | . . . . Wheel 3 | 2 1 . . Hover 3 | . 3 . . Flight 2 | . 2 . . Utility 9 | . 8 1 . Device 3 | . 3 . . Storage . | . . . . Processor . | . . . . Hackware 1 | . 1 . . Protection 5 | . 4 1 . Artifact . | . . . . Weapon 7 | 2 3 2 . Energy Gun 1 | 1 . . . Energy Cannon 1 | . 1 . . Ballistic Gun 5 | 1 2 2 . Ballistic Cannon . | . . . . Launcher . | . . . . Special Weapon . | . . . . Impact Weapon . | . . . . Slashing Weapon . | . . . . Piercing Weapon . | . . . . Special Melee Weapon . | . . . . Unidentified Prototypes . | . . . . Parts Lost 5 | . . . 5 Power . | . . . . Propulsion 1 | . . . 1 Utility 4 | . . . 4 Weapon . | . . . . Highest Loss Streak 5 | . . . 5 Average Slot Usage (%) 98 | . 99 100 96 Engine 7 | . 11 4 . Core 3 | . . 5 10 Treads 4 | . 9 . . Wheel 1 | . 3 . . Hover 21 | . 11 30 29 Flight 3 | . 6 . . Device 4 | . 10 . . Hackware 1 | . 2 . . Protection 29 | . 20 40 36 Energy Gun 1 | . 2 . . Energy Cannon 4 | . 8 . . Ballistic Gun 15 | . 11 20 20 Naked Turns . | . . . . Heaviest Build 21 | 6 18 21 21 Greatest Support 31 | 31 31 23 23 Greatest Overweight (x) 1 | . 1 . . Average Overweight (x) . | . . . . Largest Inventory Capacity 4 | 2 2 4 4 Average Capacity 2 | 2 2 2 4 Most Carried 4 | 2 2 4 4 Average Carried 2 | 1 2 2 3 Final Capacity 4 | 2 2 4 4 Final Carried 4 | 2 2 4 4 Class Distribution -------------------- 45% | Scavenger-Mutant 44% | Mutant 9% | Hacker-Mutant Dominant Class ---------------- Mutant | -10/Materials Scavenger-Mutant | -10/Mines Scavenger-Mutant | -10/Exiles Resources | -11 -10 -10 -10 ----------- Run | Scr Mat Min Exi Matter Collected 695 | 225 282 188 . Remotely . | . . . . Salvage Created 933 | . 591 342 . Parts 84 | . 61 23 . Haulers Intercepted 1 | . 1 . . Recyclers Shooed 1 | . . 1 . Parts Field Recycled . | . . . . Retrieved Matter . | . . . . Parts Self-Destructed . | . . . . Prevented . | . . . . Kills | -11 -10 -10 -10 ------- Run | Scr Mat Min Exi Combat Hostiles Destroyed 25 | . 21 4 . Guns 12 | . 8 4 . Cannons 12 | . 12 . . AOE 1 | . 1 . . Classes Destroyed 10 | . 7 3 . Worker 3 | . 1 2 . Builder 1 | . . 1 . Tunneler 2 | . 1 1 . Hauler 1 | . 1 . . Recycler 1 | . . 1 . Operator 2 | . 2 . . Watcher 3 | . 3 . . Swarmer 6 | . 6 . . Grunt 18 | . 15 3 . Sentry 1 | . . 1 . Best Kill Streak 6 | . 5 6 . Combat Bots Only 3 | . 3 2 . Max Kills in Single Turn 3 | . 3 1 . Gunslinging . | . . . . Exploded 1 | . 1 . . Melee . | . . . . Uniques/NPCs Destroyed . | . . . . Combat | -11 -10 -10 -10 -------- Run | Scr Mat Min Exi Damage Taken 1763 | . 502 276 985 Core 1098 | . 353 162 583 Absorbed by Shields . | . . . . Redirected to Core 941 | . 287 162 492 Core Remaining (%) 100 | 100 . . . Volleys Fired 122 | . 66 24 32 Largest 2 | . 2 2 2 Hottest 80 | . 80 46 46 Shots Fired 244 | . 132 48 64 Gun 196 | . 84 48 64 Cannon 48 | . 48 . . Launcher . | . . . . Special . | . . . . Kinetic 179 | . 67 48 64 Thermal 65 | . 65 . . Explosive . | . . . . Electromagnetic . | . . . . Robot Hit Streak 20 | . 10 8 20 Robot Miss Streak 4 | . 4 3 1 Penetration Max . | . . . . Secondary Targets 3 | . 1 2 . Max Gunslinging Chain 1 | . 1 1 . Shots Hit Robots 171 | . 82 31 58 Core Hits 73 | . 48 14 11 Critical Hits 2 | . 1 . 1 Critical Kills . | . . . . Critical Parts Destroyed 1 | . 1 . . Melee Attacks . | . . . . Impact . | . . . . Slashing . | . . . . Piercing . | . . . . Sneak Attacks . | . . . . Combat Hostiles . | . . . . Follow-up Attacks . | . . . . Damage Inflicted 2805 | . 1525 409 871 Guns 1734 | . 454 409 871 Cannons 658 | . 658 . . Explosions 413 | . 413 . . Melee . | . . . . Ramming . | . . . . Kinetic 1574 | . 294 409 871 Thermal 818 | . 818 . . Explosive 264 | . 264 . . Electromagnetic 149 | . 149 . . Impact . | . . . . Slashing . | . . . . Piercing . | . . . . Highest Corruption 1 | . 1 1 1 Average Corruption 1 | . 1 1 1 Corruption Purged . | . . . . Effects 5 | . 1 4 . Message Errors 1 | . . 1 . Energy Discharges 1 | . . 1 . Data Loss (minor) 1 | . 1 . . Targeting Errors 2 | . . 2 . Overload Shots . | . . . . Overflow Damage 28 | . 28 . . Projectiles . | . . . . Explosions 28 | . 28 . . Melee . | . . . . Knockbacks . | . . . . Impact . | . . . . Kinetic . | . . . . Secondary . | . . . . Self-Inflicted Damage 60 | . 60 . . Shots 2 | . 2 . . Rammed . | . . . . Targets Rammed . | . . . . Kicked . | . . . . Crushed . | . . . . Highest Temperature 138 | . 38 138 . Average Temperature 23 | . 10 36 . Received Heat Transfer 342 | . 201 141 . Siege Activations . | . . . . Robots Corrupted . | . . . . Combat Hostiles . | . . . . Parts Fried . | . . . . Impact Corruptions . | . . . . Robots Melted . | . . . . Combat Hostiles . | . . . . Parts Melted 3 | . 3 . . Heat Transferred 1813 | . 1813 . . Parts Sabotaged . | . . . . Parts Stolen . | . . . . Parts Stripped . | . . . . Power Chain Reactions . | . . . . Missiles Intercepted . | . . . . Alert | -11 -10 -10 -10 ------- Run | Scr Mat Min Exi Peak Influence 507 | . 507 177 . Average Influence 149 | . 211 72 . Maximum Alert Level 2 | . 2 . . Low Security (%) 76 | 100 58 100 . Level 1 19 | . 33 . . Level 2 4 | . 7 . . Level 3 . | . . . . Level 4 . | . . . . Level 5 . | . . . . High Security . | . . . . Max Security . | . . . . Squads Dispatched 6 | . 6 . . Investigation 3 | . 3 . . Extermination . | . . . . Reinforcement 3 | . 3 . . Assault . | . . . . Garrison . | . . . . Intercept . | . . . . Construction Impeded . | . . . . Haulers Reinforced . | . . . . Stealth | -11 -10 -10 -10 --------- Run | Scr Mat Min Exi Distress Signals 1 | . 1 . . Communications Jammed . | . . . . Distress Signals . | . . . . Times Spotted 37 | . 30 6 1 Peak Tracking Total 5 | . 5 2 2 Tactical Retreats 1 | . 1 . . Traps | -11 -10 -10 -10 ------- Run | Scr Mat Min Exi Traps Triggered 1 | . 1 . . Indirectly . | . . . . Trap Hack Attempts . | . . . . Triggered . | . . . . Disarmed . | . . . . Reprogrammed . | . . . . Reused 3 | . . . 3 Traps Extracted . | . . . . Installed 3 | . . . 3 Triggered 3 | . . . 3 Exploded 1 | . . . 1 Machines | -11 -10 -10 -10 ---------- Run | Scr Mat Min Exi Machines Disabled 5 | . 4 . 1 Max in Single Turn 2 | . 2 . 1 Machines Sabotaged . | . . . . Garrisons Compromised . | . . . . Overloaded Fab Kills . | . . . . Fab Network Shutdowns . | . . . . Hacking | -11 -10 -10 -10 --------- Run | Scr Mat Min Exi Machines Accessed 10 | . 7 1 2 Terminals 6 | . 5 1 . Fabricators . | . . . . Repair Stations . | . . . . Recycling Units 2 | . 2 . . Scanalyzers . | . . . . Garrison Access . | . . . . Total Hacks 64 | . 33 7 24 Successful 50 | . 22 4 24 Failed 13 | . 10 3 . Catastrophic . | . . . . Database Lockouts 2 | . 2 . . Manual 34 | . 25 8 1 Terminals 35 | . 28 7 . Fabricators . | . . . . Repair Stations . | . . . . Recycling Units 5 | . 5 . . Scanalyzers . | . . . . Garrison Access . | . . . . Terminal Hacks 36 | . 9 3 24 Record 23 | . . . 23 Robot Schematic 1 | . . 1 . Robot Analysis 3 | . 3 . . Branch Access Points 1 | . . 1 . Terminal Index 2 | . 1 1 . Alert Level 1 | . 1 . . Unreport Threat 2 | . 2 . . Locate Traps 1 | . 1 . . Zone Layout 1 | . 1 . . EX-Prototype ID Bank 1 | . . . 1 Fabricator Hacks . | . . . . Repair Station Hacks . | . . . . Recycling Unit Hacks 3 | . 3 . . Report Inventory 2 | . 2 . . Retrieve Components 1 | . 1 . . Scanalyzer . | . . . . Garrison Access Hacks . | . . . . Unauthorized Hacks 11 | . 10 1 . Terminals 9 | . 8 1 . Track 3 | . 2 1 . Botnet 4 | . 4 . . Detonate 1 | . 1 . . Operators 1 | . 1 . . Fabricators . | . . . . Repair Stations . | . . . . Recycling Units 2 | . 2 . . Reject 1 | . 1 . . Mask 1 | . 1 . . Scanalyzers . | . . . . Garrison Access . | . . . . Data Cores Recovered . | . . . . Used . | . . . . Hacking Detections 6 | . 5 1 . Full Trace Events 1 | . 1 . . Feedback Events . | . . . . Feedback Blocked . | . . . . Robot Schematics Acquired 1 | . . 1 . Robots Built . | . . . . Matter . | . . . . Time . | . . . . Total Robot Build Rating . | . . . . Part Schematics Acquired . | . . . . Parts Built . | . . . . Matter . | . . . . Time . | . . . . Total Part Build Rating . | . . . . Parts Repaired . | . . . . Time . | . . . . Parts Recycled . | . . . . Recycled Matter . | . . . . Retrieved Matter . | . . . . Retrieved Components 3 | . 3 . . Parts Scanalyzed . | . . . . Part Schematics Acquired . | . . . . Parts Damaged . | . . . . Bothacking | -11 -10 -10 -10 ------------ Run | Scr Mat Min Exi Used RIF Installer . | . . . . Robots Hacked . | . . . . Non-combat . | . . . . Combat . | . . . . Robot Hacks Applied . | . . . . Relay Couplers Released . | . . . . Robots Rewired . | . . . . Allies Hacked . | . . . . Hacks Repelled . | . . . . Allies | -11 -10 -10 -10 -------- Run | Scr Mat Min Exi Total Allies 3 | . . 3 . Largest Group 3 | . . 3 1 Highest-Rated Group 76 | . . 76 31 Highest-Rated Ally 31 | . . 31 31 Total Orders . | . . . . Ally Attacks 7 | . . 7 . Total Damage 103 | . . 103 . Kills 2 | . . 2 . Allies Corrupted . | . . . . Allies Melted . | . . . . Intel | -11 -10 -10 -10 ------- Run | Scr Mat Min Exi Robot Analysis Total 3 | . 3 . . Derelict Logs Recovered . | . . . . Drone Launches . | . . . . Drone Recoveries . | . . . . Exploration | -11 -10 -10 -10 ------------- Run | Scr Mat Min Exi Turns Passed 2246 | 42 1070 774 360 Spaces Moved 2236 | 44 1025 786 381 Core 17 | 16 1 . . Treads 22 | . 22 . . Legs . | . . . . Wheels 195 | 28 167 . . Hover 1818 | . 651 786 381 Flight 184 | . 184 . . Fastest Speed 50 | 50 52 52 52 Average Speed 59 | 75 67 52 52 Slowest Speed 160 | 100 160 52 52 Overloaded Moves . | . . . . Propulsion Burnouts . | . . . . Robots Hopped 1 | . 1 . . Cave-ins Triggered . | . . . . Exploration Rate (%) 66 | 4 99 99 63 Regions Visited 3 Branch Regions 2 Pre-discovered Areas 1 | . . . 1 Known Exits Taken . | . . . . Unknown Exits Taken 3 | 1 1 1 . Scrap Searched 1 | . . 1 . Spaces Dug . | . . . . Terrain Destroyed 37 | . 37 . . Melee . | . . . . Projectile . | . . . . AOE 37 | . 37 . . Actions | -11 -10 -10 -10 --------- Run | Scr Mat Min Exi Total 2914 | 50 1277 1105 482 Wait 461 | . 126 274 61 Move 2231 | 43 1022 785 381 Hop 1 | . 1 . . Pick Up 8 | 2 1 3 2 Fast Attach 22 | 5 15 2 . Attach . | . . . . Detach . | . . . . Swap 6 | . 3 3 . Drop 22 | . 13 6 3 Fire 122 | . 66 24 32 Melee . | . . . . Ram . | . . . . Kick . | . . . . Crush . | . . . . Escape Stasis . | . . . . Rewire . | . . . . Trap 3 | . . . 3 Miscellaneous 38 | . 30 8 . Route ------- -11/Scrapyard -10/Materials (discovered 5 exits: [*Mat x3] / *Min x2) -10/Mines (discovered 3 exits: [*Mat x2] / *Exi) -10/Exiles (discovered 2 exits: [*Min x2]) History --------- Turn | Location | Event 1 | -11/Scrapyard | Upgraded with Propulsion slot (x1) 1 | -11/Scrapyard | Upgraded with Utility slot (x1) 1 | -11/Scrapyard | Upgraded with Weapon slot (x1) 11 | -11/Scrapyard | Discovered new exit (range 16) 43 | -11/Scrapyard | Entered Materials 83 | -10/Materials | Discovered new exit (range 11) 101 | -10/Materials | Discovered new exit (range 10) 284 | -10/Materials | Reached level 2 290 | -10/Materials | Upgraded with Propulsion slot (x1) 290 | -10/Materials | Upgraded with Utility slot (x1) 387 | -10/Materials | Discovered new exit (range 11) 419 | -10/Materials | Discovered new exit (range 11) 425 | -10/Materials | Central database locked down 848 | -10/Materials | Reached level 3 853 | -10/Materials | Upgraded with Utility slot (x1) 889 | -10/Materials | Build established: Mutant 1015 | -10/Materials | Discovered new exit (range 11) 1113 | -10/Materials | Entered Mines 1261 | -10/Mines | Met a Derelict bent on vengeance 1261 | -10/Mines | Discovered new exit (range 3) 1340 | -10/Mines | Deemed a non-threat by the Exiles lab entrance 1340 | -10/Mines | Discovered new exit (range 5) 1361 | -10/Mines | Received a Mining Laser from a helpful Derelict 1432 | -10/Mines | Discovered new exit (range 12) 1433 | -10/Mines | Found a hidden stash of uninstalled traps 1568 | -10/Mines | Reached level 4 1595 | -10/Mines | Build established: Scavenger-Mutant 1887 | -10/Mines | Entered Exiles 1887 | -10/Exiles | Accompanied by 1 ally 1895 | -10/Exiles | Discovered new exit (range 16) 1903 | -10/Exiles | Met 8R-AWN 1917 | -10/Exiles | Led the pair of lost Derelicts to a safe place 1939 | -10/Exiles | Met EX-HEX 1954 | -10/Exiles | Met EX-BIN 1960 | -10/Exiles | Aligned with FarCom system 1961 | -10/Exiles | Given EX-Vault access code 1973 | -10/Exiles | Opened EX-Vault 1986 | -10/Exiles | Warned to stay clear of 0b10 Research branches 1995 | -10/Exiles | Exiles lab attacked by MAIN.C 2066 | -10/Exiles | Found YOLO Cannon 2068 | -10/Exiles | Found Gui. Plasma Cannon 2099 | -10/Exiles | Learned location of Zion (-7) 2141 | -10/Exiles | Discovered new exit (range 12) 2154 | -10/Exiles | Attacked by the Exiles 2185 | -10/Exiles | Core integrity fell below 50% 2223 | -10/Exiles | Core integrity fell below 20% 2247 | -10/Exiles | Destroyed by 8R-AWN with 8R-AWN's Boregun Last Messages --------------- 02201_ HV Slug penetrates Earth. 02201_ Penetrated by HV Slug. 02201_ HV Slug penetrates Earth. 02205_ HV Slug penetrates Wall. 02209_ Penetrated by HV Slug. 02222_ Critical hit. 02225_ 8R-AWN suffers critical hit. 02226_ HV Slug penetrates Wall. 02226_ HV Slug penetrates Earth. 02226_ Penetrated by HV Slug. 02226_ Lgt. Armor Plating destroyed. 02226_ HV Slug penetrates Wall. 02230_ Penetrated by HV Slug. 02230_ HV Slug penetrates Wall. 02235_ Penetrated by HV Slug. 02235_ Critical hit. 02235_ Hover Unit destroyed. 02235_ Penetrated by HV Slug. 02243_ Weapon Shielding destroyed. 02243_ Penetrated by HV Slug. Map ----- +----------------------------------------------------+ | ??????????????????????????????????????????????? | | ??????????????????????????????????????????????? | | ??????????????????????????????????????????????? | | ??????????????????????????????????????????????? | | ??????????????????????????????????????????????? | | ??????????????????????????????????????????????? | | ??????????????????????????????????????????????? | | ??????????????????????????????????????????????? | | ??????????????????????????????????????????????? | | ?????????????????????? ???????????????????????? | | ?????????????????????? ???????????????????????? | | ?????????????????????? ???????????????????????? | | ?????????????????????? ???????????????????????? | | ?????????????????????? ???????????????????????? | | ?????????????????????? ???????????????????????? | | ????????????????#####? ???????????????????????? | | ???????????????## ;# #??????????????????????? | | ???????????????# ; #??????????????????????? | | ???????????????# < # #??????????????????????? | | ???????????????# ;;#??????????????????????? | | ???????????????# ##?????????????????????? | | ???????????????# ;;#?????????????????????? | | ????????????????# ; ##????????????????????? | | ????????????????# ;; #????????????????????? | | ?????????????????# ; #??????????#######???? | | ?????????????????# @;######??????#!!! "#???? | | ?????????????????# g #""##?????# "#???? | | ?????????????????## #?????# "#???? | | ??????????????????##" ##???## ""#???? | | ??????????????????#" #####" ""#???? | | ??????????????????#### ##" ""#???? | | ?????????????????????## #"" #?????? | | ??????????????????????#"## #?????? | | ??????????????????????####### ##????? | | ????????????????????????????### "#????? | | ?????????????????????????????#" ###??? | | ???????????????????????????"""" ##?? | | ???????????????????????! "###"" ### | | ???????????????????????! "#?##" " | | ???????????????????????! ##??#" | | ??????????????????????# !""""""###???#"# | | ??????????????????????#########??????#### | | ????????????????????????????????????????### | | ??????????????????????????????????????????### | | ????????????????????????????????????????????## | | ?????????????????????????????????????????????## | | ??????????????????????????????????????????????# | | ??????????????????????????????????????????????? | | ??????????????????????????????????????????????? | | ??????????????????????????????????????????????? | +----------------------------------------------------+ Best States ------------- Heat Dissipation 55 Energy Generation 14 Energy Capacity 160 Matter Stores 300 Matter Capacity 300 Sight Range 17 Terrain Scan Density 10 Armor Coverage 450 Weapon Shielding 33 Evasion (%) 58 Recoil Reduction 1 Offensive Hacking 15 Defensive Hacking 5 Item Schematics ----------------- None Robot Schematics ------------------ O-16 Technician | -10/Mines | Hacked Fabricated ------------ Nothing Alien Tech Used ----------------- None Achievements -------------- None Challenges ------------ None RPGLIKE | -11 -10 -10 -10 --------- Run | Scr Mat Min Exi Levels Raised 3 | . 2 1 . XP Earned 7950 | 3000 3032 1568 350 XP Spent 7480 | 2350 3250 1880 . Upgrades 18 | 6 7 5 . Propulsion Slot 2 | 1 1 . . Utility Slot 3 | 1 2 . . Weapon Slot 1 | 1 . . . Core Integrity 2 | . . 2 . Heat Dissipation 2 | . 1 1 . Mass Support 1 | 1 . . . Inventory Capacity 4 | 2 . 2 . Sight Range 1 | . 1 . . Hack Attack % 1 | . 1 . . Hack Defense % 1 | . 1 . . Protomatter Created 427 | . 373 54 . Integrity Restored 671 | . 512 159 . Core 397 | . 304 93 . Parts 274 | . 208 66 . Protomatter Decayed 228 | . 149 . 79 Game ------ Seed BladeReflectiveInsulator Manual? 0 Play Time 00:35:36 Cumulative 94.7 hours Start 2020.07.21 @ 16:08:33 End 2020.07.21 @ 16:48:11 Sessions 1 Manual Loads 0 Difficulty Rogue Special Mode Winter2019/RPGLIKE Game No. 45 Rogue 45 Adventurer 0 Explorer 0 Win Type - Total 1 Types 0/0/0/1/0/0/0 Lore% 65 Gallery% 56 Achievement% 56 Wizard Run 0 Options --------- ASCII 0 Keyboard 0 Movement Numpad Keybinds 0 Fullscreen 1 Font 14/SmallcapsGlow Map View 84x54 Tactical HUD 1 Map Filters NONE Filters NONE Steam 1 RUN: b1b1f634-64f6-48e0-8e16-7b377ae09345